Cogmind - Beta 16.1 @@@ ROGUE MODE // 2026.04.07 @ 19:43:25 Player: Skergy Result: Destroyed by G-50 Soldier with Heavy Laser Performance ------------- Evolutions (4) 2000 Regions Visited (4) 800 Robots Destroyed (20) 100 Value Destroyed (679) 679 Prototype IDs (28) 560 Alien Tech Used (0) 0 Bonus (1185) 1185 TOTAL SCORE: 5324 Bonus ------- Follower Combat Kills 385 Registered with UFD 300 Met Optimus in HQ 500 Cogmind --------- Core Integrity 0/850 Matter 280/300 Energy 100/100 System Corruption 1% Temperature Cool (9) Movement Core (150) Ox2 Location -6/Factory Parts ------- > --- POWER (1) -------- (None) > --- PROPULSION (4) --- (None) > --- UTILITY (4) ------ Makeshift Light Armor Plating Graphene Brace > --- WEAPON (6) ------- Companion Sword > --- INVENTORY (5) ---- Large Storage Unit Improved Proton Missile Launcher Heavy Missile Launcher Peak State ------------ > --- POWER ------------ Deuterium Engine Deuterium Engine > --- PROPULSION ------- Improved Treads Spiked Treads Armored Treads Armored Treads Armored Treads > --- UTILITY ---------- Scrap Suit High-capacity Storage Unit Advanced Signal Interpreter Tower Shield > --- WEAPON ----------- Riot Gun Autogun 1B-0RG's Assimilator Companion Sword > --- INVENTORY -------- Light Fission Core Wheel Makeshift Flight Unit Scrap Suit Improved Heat Sink Large Storage Unit Small Matter Pod Seismic Detector 0b10 Decoder Chip [Generic] ECM Suite Makeshift Light Armor Plating Layered Medium Armor Plating Drone Bay Ion Cannon Flak Cannon Improved Proton Missile Launcher Improved Datajack Power Maul [Rating: 135] Favorites ----------- Power Ion Engine Engine Ion Engine Power Core Light Nuclear Core Propulsion Subdweller Monowheel Treads Light Treads Leg Aluminum Leg Wheel Subdweller Monowheel Flight Unit Makeshift Flight Unit Utility Humpback Device Improved Heat Sink Storage Humpback Processor Advanced Signal Interpreter Protection Tower Shield Weapon Riot Gun Energy Gun Riot Gun Energy Cannon Ion Cannon Ballistic Gun Autogun Impact Weapon Power Maul Slashing Weapon Companion Sword Special Melee Weapon 1B-0RG's Assimilator Build | -11 -10 -10 -8 -6 ------- Run | Yrd Mat Sub Scr Fac Slots Evolved 8 | . . . . 8 Power . | . . . . . Propulsion 2 | . . . . 2 Utility 2 | . . . . 2 Weapon 4 | . . . . 4 Parts Attached 48 | 6 . 17 7 18 Power 7 | 1 . 3 3 . Engine 6 | 1 . 3 2 . Core 1 | . . . 1 . Reactor . | . . . . . Propulsion 18 | 2 . 8 2 6 Treads 7 | 2 . . 1 4 Leg 3 | . . 3 . . Wheel 7 | . . 5 1 1 Hover . | . . . . . Flight 1 | . . . . 1 Utility 12 | 1 . 2 . 9 Device 6 | . . 1 . 5 Storage 3 | 1 . 1 . 1 Processor 1 | . . . . 1 Hackware . | . . . . . Protection 2 | . . . . 2 Artifact . | . . . . . Weapon 11 | 2 . 4 2 3 Energy Gun 4 | 1 . 3 . . Energy Cannon 2 | . . 1 1 . Ballistic Gun 1 | 1 . . . . Ballistic Cannon . | . . . . . Launcher . | . . . . . Special Weapon . | . . . . . Impact Weapon 1 | . . . . 1 Slashing Weapon 1 | . . . 1 . Piercing Weapon . | . . . . . Special Melee Weapon 2 | . . . . 2 Unidentified Prototypes 2 | . . . 1 1 Parts Lost 16 | . . 4 . 12 Power 1 | . . . . 1 Propulsion 10 | . . 3 . 7 Utility 2 | . . . . 2 Weapon 3 | . . 1 . 2 Highest Loss Streak 10 | . . 4 . 10 To Critical Strikes . | . . . . . Average Backups 17 | 1 4 11 25 17 Power 1 | . 1 1 2 . Propulsion 4 | . 2 4 5 2 Utility 6 | . . 1 10 9 Weapon 4 | . 1 2 5 3 Tool/Special . | . . . . . Unused Backups 32 | . . 3 15 14 Power 3 | . . . 1 2 Propulsion 3 | . . 2 1 . Utility 14 | . . . 5 9 Weapon 10 | . . 1 6 3 Tool/Special 2 | . . . 2 . Average Slot Usage (%) 85 | . 85 94 83 69 Engine 12 | . 14 13 14 6 Treads 9 | . 28 12 . 19 Leg 4 | . . 8 1 . Wheel 12 | . . 7 26 1 Device 4 | . . 8 . 5 Storage 12 | . 14 14 14 4 Energy Gun 18 | . 14 23 21 3 Energy Cannon 2 | . . 2 3 . Ballistic Gun 2 | . 14 2 . 3 Slashing Weapon 2 | . . . 2 6 Peak Build Rating 135 | 6 6 24 34 135 Average Rating 32 | 4 6 15 27 85 On Entrance 14 | . 6 6 24 34 Avg Prop Armor Cover (%) 8 | . . 7 7 18 Naked Turns . | . . . . . Heaviest Build 322 | 12 12 212 218 322 Greatest Support 103 | 40 40 40 30 103 Greatest Overweight (x) 21 | 1 . 10 21 7 Average Overweight (x) 4 | . . 3 7 2 Largest Inventory Capacity 35 | 8 8 35 35 35 Average Capacity 23 | 7 8 17 35 19 Most Carried 35 | 4 4 30 35 33 Average Carried 20 | 2 4 13 32 17 Final Capacity 35 | 8 8 35 35 5 Final Carried 35 | 4 4 30 35 3 Scrap Suit Usage (%) 17 | . . . . 89 Parts Cannibalized 4 | . . . . 4 Class Distribution -------------------- 50% | Hauler-Mutant 31% | Mutant 15% | Derelict-Mutant Dominant Class ---------------- Mutant | -10/Materials Mutant | -10/Subcaves Hauler-Mutant | -8/Scraptown Derelict-Mutant | -6/Factory Resources | -11 -10 -10 -8 -6 ----------- Run | Yrd Mat Sub Scr Fac Matter Collected 1168 | 210 . 251 100 607 Remotely . | . . . . . Salvage Created 726 | . . 291 . 435 Parts 42 | . . 23 . 19 Haulers Intercepted . | . . . . . Recyclers Shooed 1 | . . . . 1 Parts Field Recycled . | . . . . . Retrieved Matter . | . . . . . Parts Self-Destructed 18 | . . 18 . . Prevented . | . . . . . Parts Restored . | . . . . . Kills | -11 -10 -10 -8 -6 ------- Run | Yrd Mat Sub Scr Fac Combat Hostiles Destroyed 19 | . . 6 . 13 Melee 8 | . . . . 8 Guns 6 | . . 4 . 2 Cannons 3 | . . 2 . 1 Classes Destroyed 5 | . . 1 . 4 Builder 1 | . . . . 1 Swarmer 10 | . . . . 10 Grunt 2 | . . . . 2 Sentry 1 | . . . . 1 Subdweller 6 | . . 6 . . Best Kill Streak 4 | . . 2 . 4 Combat Bots Only 4 | . . 2 . 4 Max Kills in Single Turn 2 | . . 1 . 2 Gunslinging . | . . . . . Exploded . | . . . . . Melee 1 | . . . . 1 Uniques/NPCs Destroyed . | . . . . . Combat | -11 -10 -10 -8 -6 -------- Run | Yrd Mat Sub Scr Fac Hostile Shots Fired 344 | . . 74 . 270 Missed 104 | . . 28 . 76 Hits 240 | . . 46 . 194 Melee 13 | . . . . 13 Projectile 227 | . . 46 . 181 AOE 1 | . . 1 . . Critical Strikes 8 | . . 1 . 7 Actively Blocked 3 | . . . . 3 Damage Taken 4066 | . . 828 . 3238 Core 1040 | . . 180 . 860 Absorbed by Shields . | . . . . . Regen/Repaired (Parts) 47 | . . . . 47 Core Remaining (%) 64 | 100 . . 28 . Volleys Fired 38 | . . 33 . 5 Largest 3 | . . 2 . 3 Hottest 182 | . . 120 . 182 Shots Fired 70 | . . 55 . 15 Gun 59 | . . 49 . 10 Cannon 11 | . . 6 . 5 Launcher . | . . . . . Special . | . . . . . Kinetic 12 | . . 7 . 5 Thermal 32 | . . 22 . 10 Explosive . | . . . . . Electromagnetic 26 | . . 26 . . Robot Hit Streak 17 | . . 17 . 3 Robot Miss Streak 4 | . . 3 . 4 Penetration Max . | . . . . . Secondary Targets . | . . . . . Shots Hit Robots 57 | . . 35 . 22 Core Hits 25 | . . 12 . 13 Critical Kills 2 | . . . . 2 Critical Parts Destroyed 2 | . . . . 2 Critical Strikes 5 | . . 1 . 4 Meltdown 1 | . . . . 1 Destroy 1 | . . 1 . . Smash 3 | . . . . 3 Melee Attacks 31 | . . . . 31 Impact 6 | . . . . 6 Slashing 24 | . . . . 24 Piercing . | . . . . . Sneak Attacks 1 | . . . . 1 Combat Hostiles . | . . . . . Follow-up Attacks 3 | . . . . 3 Damage Inflicted 1426 | . . 543 . 883 Guns 511 | . . 436 . 75 Cannons 200 | . . 107 . 93 Explosions . | . . . . . Melee 684 | . . . . 684 Ramming 31 | . . . . 31 Kinetic 81 | . . 81 . . Thermal 435 | . . 267 . 168 Explosive . | . . . . . Electromagnetic 195 | . . 195 . . Impact 207 | . . . . 207 Slashing 477 | . . . . 477 Piercing . | . . . . . Highest Corruption 1 | . . . . 1 Average Corruption 1 | . . . . 1 Corruption Purged . | . . . . . Corruption Blocked . | . . . . . Effects 8 | . . . . 8 Message Errors 2 | . . . . 2 Heat Flow Errors 3 | . . . . 3 Data Loss (major) 1 | . . . . 1 Alerts 2 | . . . . 2 Overload Shots . | . . . . . Overflow Damage 129 | . . . . 129 Projectiles . | . . . . . Explosions . | . . . . . Melee 129 | . . . . 129 Knockbacks 1 | . . . . 1 Impact 1 | . . . . 1 Kinetic . | . . . . . Secondary . | . . . . . Self-Inflicted Damage 15 | . . . . 15 Shots . | . . . . . Rammed 3 | . . . . 3 Targets Rammed 3 | . . . . 3 Kicked . | . . . . . Crushed . | . . . . . Highest Temperature 456 | . . . . 456 Average Temperature 179 | . . . . 179 Received Heat Transfer 891 | . . 216 . 675 Effects 6 | . . . . 6 Shutdowns 2 | . . . . 2 Energy Bleed 1 | . . . . 1 Interference 1 | . . . . 1 Short Circuit 1 | . . . . 1 Damage (minor) 1 | . . . . 1 Siege Activations . | . . . . . Martial Activations . | . . . . . Shielding Activations . | . . . . . Robots Disrupted . | . . . . . Combat Hostiles . | . . . . . Robots Corrupted 1 | . . . . 1 Combat Hostiles 1 | . . . . 1 Parts Fried 3 | . . . . 3 Impact Corruptions 6 | . . . . 6 Robots Melted 1 | . . . . 1 Combat Hostiles 1 | . . . . 1 Parts Melted 2 | . . 1 . 1 Heat Transferred 646 | . . 348 . 298 Parts Sabotaged . | . . . . . Parts Stolen . | . . . . . Parts Stripped . | . . . . . Power Chain Reactions . | . . . . . Alert | -11 -10 -10 -8 -6 ------- Run | Yrd Mat Sub Scr Fac Maximum Alert Level 1 | . . . . 1 Low Security (%) 75 | 100 100 . . 72 Level 1 24 | . . . . 27 Level 2 . | . . . . . Level 3 . | . . . . . Level 4 . | . . . . . Level 5 . | . . . . . High Security . | . . . . . Max Security . | . . . . . Peak Influence 330 | . . . . 330 Initial . | . . . . . Average 115 | . . . . 128 Influence Increases 864 | . . 120 . 744 Destroy 0b10 Robot/C 460 | . . . . 460 Destroy 0b10 Robot/NC 10 | . . . . 10 Destroy Leader 112 | . . . . 112 Allied During Kill 40 | . . . . 40 Disable Machine 15 | . . . . 15 Destroy Structure 2 | . . . . 2 Lose Combat Pursuer 225 | . . 120 . 105 Influence Decreases 804 | . . 120 . 684 Time Decay 484 | . . 120 . 364 Lost Part 120 | . . . . 120 Lost Ally 200 | . . . . 200 Squads Dispatched 8 | . . . . 8 Investigation 2 | . . . . 2 Extermination 2 | . . . . 2 Reinforcement 4 | . . . . 4 Assault . | . . . . . Garrison . | . . . . . Intercept . | . . . . . Searches Triggered . | . . . . . Construction Impeded . | . . . . . Haulers Reinforced . | . . . . . Active Scanning Responses . | . . . . . Cargo Convoy Interrupts . | . . . . . Stealth | -11 -10 -10 -8 -6 --------- Run | Yrd Mat Sub Scr Fac Distress Signals . | . . . . . Communications Jammed . | . . . . . Distress Signals . | . . . . . Times Spotted 58 | . . 18 . 40 Peak Tracking Total 11 | . . 6 . 11 Tactical Retreats 9 | . . 3 . 6 Traps | -11 -10 -10 -8 -6 ------- Run | Yrd Mat Sub Scr Fac Traps Triggered 1 | . . 1 . . Indirectly . | . . . . . Trap Hack Attempts . | . . . . . Triggered . | . . . . . Disarmed . | . . . . . Reprogrammed . | . . . . . Reused . | . . . . . Traps Extracted . | . . . . . Installed . | . . . . . Triggered . | . . . . . Machines | -11 -10 -10 -8 -6 ---------- Run | Yrd Mat Sub Scr Fac Machines Disabled 4 | . . 3 . 1 Max in Single Turn 1 | . . 1 . 1 Machines Repaired . | . . . . . Machines Dismantled . | . . . . . Machines Sabotaged . | . . . . . Overloaded Fab Kills . | . . . . . Hacking | -11 -10 -10 -8 -6 --------- Run | Yrd Mat Sub Scr Fac Machines Accessed 11 | . . 1 5 5 Terminals 1 | . . . . 1 Fabricators 1 | . . . . 1 Repair Stations 1 | . . . . 1 Recycling Units 2 | . . . . 2 Scanalyzers . | . . . . . Garrison Access . | . . . . . Total Hacks 27 | . . 1 15 11 Successful 22 | . . 1 15 6 Failed 5 | . . . . 5 Catastrophic 2 | . . . . 2 Database Lockouts . | . . . . . Manual 7 | . . . . 7 Terminals 2 | . . . . 2 Fabricators 3 | . . . . 3 Repair Stations 4 | . . . . 4 Recycling Units 2 | . . . . 2 Scanalyzers . | . . . . . Garrison Access . | . . . . . Terminal Hacks 16 | . . 1 15 . Record 13 | . . . 13 . Open Door 1 | . . . 1 . Proto ID Catalog 2 | . . 1 1 . Fabricator Hacks . | . . . . . Repair Station Hacks 2 | . . . . 2 Scan Component 2 | . . . . 2 Recycling Unit Hacks . | . . . . . Scanalyzer . | . . . . . Garrison Access Hacks . | . . . . . Unauthorized Hacks 4 | . . . . 4 Terminals . | . . . . . Fabricators 2 | . . . . 2 Report 1 | . . . . 1 Fabnet 1 | . . . . 1 Repair Stations . | . . . . . Recycling Units 2 | . . . . 2 Fedlink 1 | . . . . 1 Scrapoids 1 | . . . . 1 Scanalyzers . | . . . . . Garrison Access . | . . . . . Data Cores Recovered . | . . . . . Used . | . . . . . Hacking Detections 3 | . . . . 3 Full Trace Events . | . . . . . Feedback Events . | . . . . . Feedback Blocked . | . . . . . Robot Schematics Acquired . | . . . . . Robots Built . | . . . . . Authchips . | . . . . . Time . | . . . . . Total Robot Build Rating . | . . . . . Part Schematics Acquired . | . . . . . Parts Built . | . . . . . Authchips . | . . . . . Time . | . . . . . Total Part Build Rating . | . . . . . Part Studies Acquired . | . . . . . Parts Repaired . | . . . . . Time . | . . . . . Parts Recycled . | . . . . . Recycled Matter . | . . . . . Retrieved Matter . | . . . . . Retrieved Components . | . . . . . Parts Scanalyzed . | . . . . . Part Schematics Acquired . | . . . . . Parts Damaged . | . . . . . Bothacking | -11 -10 -10 -8 -6 ------------ Run | Yrd Mat Sub Scr Fac Used RIF Installer . | . . . . . Robots Hacked . | . . . . . Non-combat . | . . . . . Combat . | . . . . . Robot Hacks Applied . | . . . . . Relay Couplers Released . | . . . . . Fabnet Peak Effective % . | . . . . . Robots Rewired . | . . . . . Allies Hacked 1 | . . . . 1 Hacks Repelled . | . . . . . Allies | -11 -10 -10 -8 -6 -------- Run | Yrd Mat Sub Scr Fac Total Allies 8 | . . . . 8 Largest Group 3 | . . . . 3 Highest-Rated Group 114 | . . . . 114 Highest-Rated Ally 48 | . . . . 48 Initial UFD Resources 22 | . . . . 22 Total Orders . | . . . . . Ally Attacks 68 | . . . . 68 Total Damage 1565 | . . . . 1565 Kills 11 | . . . . 11 Allies Corrupted . | . . . . . Allies Melted 1 | . . . . 1 Borg Created 5 | . . . . 5 Largest Collective 3 | . . . . 3 Intel | -11 -10 -10 -8 -6 ------- Run | Yrd Mat Sub Scr Fac Active Infowar (turns) 106 | . . . . 106 Seismic 91 | . . . . 91 Jamming 15 | . . . . 15 Robot Analysis Total . | . . . . . Derelict Logs Recovered 6 | . . 1 5 . Drone Launches . | . . . . . Drone Recoveries . | . . . . . Exploration | -11 -10 -10 -8 -6 ------------- Run | Yrd Mat Sub Scr Fac Turns Passed 7402 | 72 93 3258 2560 1419 Spaces Moved 3490 | 41 43 1491 1355 560 Core 62 | 6 . . . 56 Treads 1041 | 35 43 586 . 377 Legs 51 | . . 51 . . Wheels 2332 | . . 854 1355 123 Hover . | . . . . . Flight 4 | . . . . 4 Fastest Speed 50 | 50 160 110 167 55 Average Speed 182 | 146 160 176 181 204 Slowest Speed 820 | 160 160 820 395 420 Overloaded Moves . | . . . . . Propulsion Burnouts . | . . . . . Robots Hopped . | . . . . . Potential Cave-ins . | . . . . . Cave-ins Triggered . | . . . . . Exploration Rate (%) 34 | 3 9 57 90 15 Regions Visited 4 Branch Regions 2 Pre-discovered Areas 3 | . . . 3 . Known Exits Taken . | . . . . . Unknown Exits Taken 4 | 1 1 1 1 . Scrap Searched 10 | . . 5 5 . Spaces Dug 2 | . . . . 2 Terrain Destroyed 2 | . . . . 2 Melee 2 | . . . . 2 Projectile . | . . . . . AOE . | . . . . . Terrain Rammed . | . . . . . Walls Destroyed . | . . . . . Machines Disabled . | . . . . . Actions | -11 -10 -10 -8 -6 --------- Run | Yrd Mat Sub Scr Fac Total 4429 | 51 67 2067 1472 772 Wait 660 | . 25 468 51 116 Move 3486 | 40 42 1490 1354 560 Hop . | . . . . . Pick Up 93 | 5 . 35 31 22 Fast Attach 11 | 5 . 4 . 2 Attach 27 | 1 . 9 1 16 Detach 8 | . . 5 . 3 Swap 15 | . . 6 6 3 Drop 55 | . . 17 29 9 Fire 38 | . . 33 . 5 Melee 28 | . . . . 28 Ram 3 | . . . . 3 Kick . | . . . . . Crush . | . . . . . Escape Stasis . | . . . . . Rewire . | . . . . . Trap . | . . . . . Miscellaneous 5 | . . . . 5 Route ------- -11/Scrapyard -10/Materials (discovered 2 exits: [*Min] / *Sub) -10/Subcaves (discovered 3 exits: [*Mat] / [*Rec] / *Scr) -8/Scraptown (discovered 2 exits: *Fac x2) -6/Factory (discovered 2 exits: *Fac / [*Low]) History --------- Turn | Location | Event 2 | -11/Scrapyard | Met Revision 17 13 | -11/Scrapyard | Discovered new exit (range 16) 73 | -11/Scrapyard | Entered Materials 74 | -10/Materials | Met a group of wandering Federalists 85 | -10/Materials | Discovered new exit (range 16) 112 | -10/Materials | Discovered new exit (range 3) 166 | -10/Materials | Entered Subcaves 167 | -10/Subcaves | Continued accompanying wandering Federalists (6) 202 | -10/Subcaves | Discovered new exit (range 12) 301 | -10/Subcaves | Build established: Mutant 374 | -10/Subcaves | Wandering Federalist uncovered a shortcut to Scraptown 678 | -10/Subcaves | Disturbed a concealed Subdweller 857 | -10/Subcaves | Learned Materials stockpile data 1636 | -10/Subcaves | Core integrity fell below 50% 1664 | -10/Subcaves | Lost 4 parts (3n1w) 1874 | -10/Subcaves | Discovered new exit (range 8) 2217 | -10/Subcaves | Visited 4L-MR0's lab 2251 | -10/Subcaves | Found Prototype Special Melee Weapon 2257 | -10/Subcaves | Found Tower Shield 2531 | -10/Subcaves | Build established: Hauler-Mutant 3424 | -10/Subcaves | Entered Scraptown 3503 | -8/Scraptown | Heard Great Nut preacher, LISTEN AND RECITE! 3736 | -8/Scraptown | Scanned Subdweller tech in exchange for log data 3743 | -8/Scraptown | Learned location of 1 exit from Upper Caves 3747 | -8/Scraptown | Learned Research terminal intel 3748 | -8/Scraptown | Learned location of Testing (-2) 3750 | -8/Scraptown | Learned Research emergency access door positions 3770 | -8/Scraptown | Discovered new exit (range 11) 4116 | -8/Scraptown | Visited The Evicted 4146 | -8/Scraptown | Visited TADAMA 4200 | -8/Scraptown | Visited Cyclists 4250 | -8/Scraptown | Visited UFD Registry 4250 | -8/Scraptown | Registered with UFD as "Chainranger" 4284 | -8/Scraptown | Entered Cyclist Reading Room 4350 | -8/Scraptown | Visited Cave Peace 4368 | -8/Scraptown | Visited Spacefarers 4474 | -8/Scraptown | Learned location of Extension (-6) 4502 | -8/Scraptown | Visited SPCMW 4842 | -8/Scraptown | Visited Science Guys 4897 | -8/Scraptown | Visited Scrap Suit Storage 4911 | -8/Scraptown | Found Scrap Suit 4913 | -8/Scraptown | Found Scrap Suit 4968 | -8/Scraptown | Visited Chapter 10 5047 | -8/Scraptown | Delivered Scrap Shield to a Scientist 5219 | -8/Scraptown | Visited Supply Room 5258 | -8/Scraptown | Visited DA-N13 Charitable Foundation 5284 | -8/Scraptown | Found DCF Scrap (32 items) 5403 | -8/Scraptown | Visited Sword Containment 5447 | -8/Scraptown | Found Prototype Slashing Weapon 5478 | -8/Scraptown | Identified Companion Sword 5481 | -8/Scraptown | Visited Curators Association 5549 | -8/Scraptown | Visited Junk Repository 5598 | -8/Scraptown | Visited Abandonware Association 5616 | -8/Scraptown | Learned abandonware demo "POISON.EXE" 5662 | -8/Scraptown | Visited Infowarlord's Domain 5858 | -8/Scraptown | Met Optimus 5858 | -8/Scraptown | Accepted into 0bPrime 5968 | -8/Scraptown | Discovered new exit (range 5) 5984 | -8/Scraptown | Entered Factory 5984 | -6/Factory | Evolved 8 slots: Propulsion x2, Utility x2, Weapon x4 5985 | -6/Factory | Attached Tower Shield, gained temporary slots: Power, Propulsion x2, Utility x2, Weapon x2 5991 | -6/Factory | Identified 1B-0RG's Assimilator 5995 | -6/Factory | Discovered new exit (range 16) 6190 | -6/Factory | Identified exit to Factory 6286 | -6/Factory | Build established: Derelict-Mutant 6313 | -6/Factory | Assimilating Processor 5a into Collective. 6323 | -6/Factory | Assimilating Engineer 5a into Collective. 6515 | -6/Factory | Assimilating Soldier 5a into Collective. 6523 | -6/Factory | Assimilating Soldier 5b into Collective. 6643 | -6/Factory | Discovered new exit (range 14) 6647 | -6/Factory | Assimilating Soldier 5c into Collective. 7057 | -6/Factory | Loaded intel: 8 recycling unit locations 7321 | -6/Factory | Core integrity fell below 50% 7352 | -6/Factory | Lost 10 parts (1p6n1u2w) 7359 | -6/Factory | Core integrity fell below 20% 7394 | -6/Factory | Scrapoids reinforcements arrived? 7403 | -6/Factory | Destroyed by G-50 Soldier with Heavy Laser Last Messages --------------- 07343_ ALERT: Potential suspicious activity detected, Programmers report to Factory Zone 2D. Companion Sword: "What am I to you, a shovel?" 07346_ System corrupted: IFF burst signal emitted. 07375_ Connecting with Recycling Unit... >>Force(Scrapoids) UFD!MEMBER UFD!ALLOCATE<32-3=29> UFD!ETA<19> UFD!SANITIZING UFD!... 07375_ ALERT: Suspicious activity at Recycling Unit F004. Dispatching Investigation squad. 07391_ K-01 Serf cleans the Fusion Modulator. 07394_ >> RECYCLER: Scrapoids arrived? 07394_ K-01 Serf cleans the Fusion Modulator. 07400_ G-67 Veteran heat damages Flexi-carbon Leg. 07401_ G-67 Veteran heat damages core (-21). 07402_ G-67 Veteran heat spikes uncontrollably. 07402_ K-01 Serf cleans the Fusion Modulator. Map ----- +----------------------------------------------------+ | ?????????????????????????????????????????????????? | | ?????????????????????????????????????????????????? | | ?????????????????????????????????????????????????? | | ?????????????????????????????????????????????????? | | ##########???????????????????????????????????????? | | #???????????????????????????????????????? | | #???????????????????????????????????????? | | #???????????????????????????????????????? | | #???????????????????????????????????????? | | #???????????????????????????????????????? | | [ #?????? ??????? ???????????????????????? | | #?????? ? ??? ???????????????????????? | | #?????? ?? ??????????????????????? | | #?????+ ""? "??????????????????????? | | #?????# k """ "??????????????????????? | | #?????# """ "??????????????????????? | | #???### ?????????????????????? | | ##########???# """ """????????????????????? | | #######u """ """ ? ????????????????? | | + k """ """ ???????????????? | | # ????????????????? | | "" """ # """ #?????????????????? | | "" """ / #?# ! """ #?????????????????? | | "" """ ######## / """ #?????????????????? | | # !!%!ggg #?????????????????? | | ######## """ #g ]! @""" #?????????????????? | | ???????# Y" # [l """ #?????????????????? | | ???????# """ ## ll """ #?????????????????? | | ???????# ## #?????????????????? | | ???????# """ ## """ """ #?????????????????? | | ???????# """ ## """ """ #?????????????????? | | ???????# """ ## """k""" #?????????????????? | | ???????# ## #?????????????????? | | ???????# **###### """ """ ???????????????????? | | ???????# * #????# """ """ ???????????????????? | | ???????# #????# """k""?????????????????????? | | ???????# ! #????# ?????????????????????? | | ???????#### ###????# """ "??????????????????????? | | ??????????##???????# ""? "??????????????????????? | | ???????????????????# ""? ???????????????????????? | | ???????????????????# ?? ???????????????????????? | | ???????????????????? ??????????????????????????? | | ???????????????????? ??????????????????????????? | | ???????????????????? ??????????????????????????? | | ???????????????????? ??????????????????????????? | | ?????????????????????????????????????????????????? | | ?????????????????????????????????????????????????? | | ?????????????????????????????????????????????????? | | ?????????????????????????????????????????????????? | | ?????????????????????????????????????????????????? | +----------------------------------------------------+ Best States ------------- Heat Dissipation 39 Energy Generation 23 Energy Capacity 450 Matter Stores 300 Matter Capacity 300 Sight Range 16 Terrain Scan Density 10 Jamming Range 12 Armor Coverage 2000 Evasion (%) 40 Recoil Reduction 5 Item Schematics ----------------- None Robot Schematics ------------------ None Fabricated ------------ Nothing Repaired ---------- Nothing Studied --------- None Alien Tech Used ----------------- None Achievements -------------- None Challenges ------------ None Game ------ Seed PlasmaOmegaNanoactuators Manual? 0 Play Time 01:01:40 Cumulative 139.1 hours Start 2026.02.27 @ 13:40:54 End 2026.04.07 @ 19:43:25 Sessions 6 Manual Loads 0 Difficulty Rogue Special Mode None Game No. 153 Rogue 153 Adventurer 0 Explorer 0 Win Type - Total 4 Types 4/0/0/0/0/0/0/0/0/0 Lore% 70 Gallery% 53 Achievement% 43 Wizard Run 0 Options --------- Layout 0 ASCII 0 Keyboard 1 Movement Vi Keybinds 0 Fullscreen 1 Font 24/Smallcaps Map View 76x50 Zoom Use 0% Tactical HUD 1 Map Filters NONE Filters NONE Steam 1 RUN: 268eff49-2c7d-435f-ab1e-903db8fe75a5